[Event "Late-Titled-Tuesday-Blitz-September-19-2023"]
[Site "Chess.com"]
[Date "2023.09.19"]
[Round "4"]
[White "hellokostya"]
[Black "Gogolev_Artemy"]
[Result "1-0"]
[WhiteElo "2600"]
[BlackElo "2401"]
[TimeControl "180+1"]
[EndTime "14:37:28 PDT"]
[Termination "hellokostya won on time"]

1. d4 {[%clk 0:03:00.9]} 1... d5 {[%clk 0:02:59.7]} 2. c4 {[%clk 0:03:00.9]}
2... c6 {[%clk 0:03:00.1]} 3. Nf3 {[%clk 0:03:00.8]} 3... Nf6 {[%clk 0:03:00.5]}
4. e3 {[%clk 0:03:00.3]} 4... Bf5 {[%clk 0:03:00.1]} 5. Nc3 {[%clk 0:02:59.8]}
5... e6 {[%clk 0:02:58.8]} 6. Nh4 {[%clk 0:03:00]} 6... Be4 {[%clk 0:02:59.3]}
7. f3 {[%clk 0:02:54.1]} 7... Bg6 {[%clk 0:02:59.6]} 8. Qb3 {[%clk 0:02:50.7]}
8... Qc7 {[%clk 0:02:58.2]} 9. Bd2 {[%clk 0:02:49.6]} 9... Be7 {[%clk
0:02:50.2]} 10. Nxg6 {[%clk 0:02:47]} 10... hxg6 {[%clk 0:02:51.1]} 11. cxd5
{[%clk 0:02:45.9]} 11... exd5 {[%clk 0:02:49.8]} 12. O-O-O {[%clk 0:02:44.2]}
12... Nbd7 {[%clk 0:02:38.8]} 13. Kb1 {[%clk 0:02:32.3]} 13... a5 {[%clk
0:02:25.7]} 14. e4 {[%clk 0:02:24.7]} 14... dxe4 {[%clk 0:01:40.4]} 15. fxe4
{[%clk 0:02:21.5]} 15... a4 {[%clk 0:01:40.2]} 16. Qc2 {[%clk 0:02:17.8]} 16...
Nb6 {[%clk 0:01:05.6]} 17. e5 {[%clk 0:02:08.4]} 17... Nfd5 {[%clk 0:01:05.8]}
18. e6 {[%clk 0:01:58.3]} 18... f5 {[%clk 0:01:04.7]} 19. g4 {[%clk 0:01:54.9]}
19... Nb4 {[%clk 0:00:57.8]} 20. Qc1 {[%clk 0:01:54.1]} 20... O-O-O {[%clk
0:00:47.4]} 21. gxf5 {[%clk 0:01:51.3]} 21... gxf5 {[%clk 0:00:48.3]} 22. a3
{[%clk 0:01:14.8]} 22... N4d5 {[%clk 0:00:42.2]} 23. Bd3 {[%clk 0:01:14.8]}
23... Rh4 {[%clk 0:00:22]} 24. Bxf5 {[%clk 0:01:05.4]} 24... Rxd4 {[%clk
0:00:21.2]} 25. Bg5 {[%clk 0:00:52.2]} 25... Nxc3+ {[%clk 0:00:16.4]} 26. bxc3
{[%clk 0:00:49.8]} 26... Rxd1 {[%clk 0:00:15.3]} 27. Rxd1 {[%clk 0:00:50.5]}
27... Rxd1 {[%clk 0:00:15.2]} 28. Qxd1 {[%clk 0:00:50.9]} 28... Bxg5 {[%clk
0:00:15.5]} 29. e7+ {[%clk 0:00:49.8]} 29... Kb8 {[%clk 0:00:12.7]} 30. e8=Q+
{[%clk 0:00:47.3]} 30... Ka7 {[%clk 0:00:13.3]} 31. Qe4 {[%clk 0:00:38.6]} 31...
Bf6 {[%clk 0:00:12.9]} 32. Qd2 {[%clk 0:00:34.6]} 32... Qf7 {[%clk 0:00:10.7]}
33. c4 {[%clk 0:00:32.4]} 33... Nxc4 {[%clk 0:00:08.4]} 34. Qb4 {[%clk
0:00:27.3]} 34... Nb6 {[%clk 0:00:04.1]} 35. Qa5+ {[%clk 0:00:26.7]} 35... Kb8
{[%clk 0:00:03.9]} 36. Qf4+ {[%clk 0:00:26.6]} 36... Qc7 {[%clk 0:00:01.1]} 37.
Qxc7+ {[%clk 0:00:25.7]} 37... Kxc7 {[%clk 0:00:02]} 38. Bc2 {[%clk 0:00:20.2]}
38... Bd4 {[%clk 0:00:01.6]} 39. Bxa4 {[%clk 0:00:19.7]} 39... Kd6 {[%clk
0:00:02.3]} 40. Bd1 {[%clk 0:00:19.2]} 1-0

[Event "Late-Titled-Tuesday-Blitz-September-19-2023"]
[Site "Chess.com"]
[Date "2023.09.19"]
[Round "4"]
[White "Oleksandr_Bortnyk"]
[Black "KaydenTroffChess"]
[Result "1-0"]
[WhiteElo "3014"]
[BlackElo "2787"]
[TimeControl "180+1"]
[EndTime "14:37:31 PDT"]
[Termination "Oleksandr_Bortnyk won by resignation"]

1. e4 {[%clk 0:02:59.3]} 1... c5 {[%clk 0:02:59.2]} 2. c3 {[%clk 0:02:58.7]}
2... g6 {[%clk 0:02:57.8]} 3. d4 {[%clk 0:02:58.6]} 3... cxd4 {[%clk 0:02:58.1]}
4. cxd4 {[%clk 0:02:59.5]} 4... d5 {[%clk 0:02:57.9]} 5. exd5 {[%clk 0:02:58.9]}
5... Nf6 {[%clk 0:02:57.1]} 6. Nc3 {[%clk 0:02:46.6]} 6... Bg7 {[%clk
0:02:55.9]} 7. Bc4 {[%clk 0:02:45.6]} 7... O-O {[%clk 0:02:52.1]} 8. Nge2 {[%clk
0:02:46.2]} 8... a6 {[%clk 0:02:49.3]} 9. a4 {[%clk 0:02:45.6]} 9... Nbd7 {[%clk
0:02:35.4]} 10. Qb3 {[%clk 0:02:45.7]} 10... Nb6 {[%clk 0:02:30.9]} 11. O-O
{[%clk 0:02:45.8]} 11... Bf5 {[%clk 0:02:25.2]} 12. a5 {[%clk 0:02:40.8]} 12...
Nxc4 {[%clk 0:02:19]} 13. Qxc4 {[%clk 0:02:41.7]} 13... Rc8 {[%clk 0:02:16]} 14.
Qb3 {[%clk 0:02:42.2]} 14... Qd7 {[%clk 0:02:08.4]} 15. Re1 {[%clk 0:02:42.1]}
15... Bd3 {[%clk 0:02:06.3]} 16. Ra4 {[%clk 0:02:38.5]} 16... Bxe2 {[%clk
0:01:54.9]} 17. Rxe2 {[%clk 0:02:36.2]} 17... Nxd5 {[%clk 0:01:49.1]} 18. Bd2
{[%clk 0:02:34.2]} 18... Nxc3 {[%clk 0:01:35.8]} 19. bxc3 {[%clk 0:02:35.1]}
19... e6 {[%clk 0:01:33.5]} 20. Rb4 {[%clk 0:02:33.5]} 20... Qd8 {[%clk
0:00:53.7]} 21. Rb6 {[%clk 0:02:27.1]} 21... e5 {[%clk 0:00:43.3]} 22. d5 {[%clk
0:02:18.5]} 22... Rc5 {[%clk 0:00:41.5]} 23. c4 {[%clk 0:02:18.3]} 23... Qc8
{[%clk 0:00:36.3]} 24. Re4 {[%clk 0:01:48.3]} 24... f5 {[%clk 0:00:33.5]} 25.
Rh4 {[%clk 0:01:48.7]} 25... Bf6 {[%clk 0:00:32.3]} 26. Rh3 {[%clk 0:01:41.8]}
26... Rxc4 {[%clk 0:00:28.9]} 27. d6 {[%clk 0:01:42.3]} 27... Rf7 {[%clk
0:00:20.6]} 28. Rc3 {[%clk 0:01:17.8]} 28... Rxc3 {[%clk 0:00:16.2]} 29. Bxc3
{[%clk 0:01:18.7]} 29... e4 {[%clk 0:00:16.8]} 30. d7 {[%clk 0:01:13.4]} 30...
Qxd7 {[%clk 0:00:09.6]} 31. Rxf6 {[%clk 0:01:10.9]} 31... Kf8 {[%clk 0:00:06.7]}
32. Rxf7+ {[%clk 0:00:47.6]} 32... Qxf7 {[%clk 0:00:07.6]} 33. Qb4+ {[%clk
0:00:47.6]} 33... Qe7 {[%clk 0:00:07.2]} 34. Qd4 {[%clk 0:00:46.7]} 34... Qc7
{[%clk 0:00:07]} 35. Qh8+ {[%clk 0:00:45.7]} 35... Ke7 {[%clk 0:00:07.3]} 36.
Qxh7+ {[%clk 0:00:45.7]} 36... Kd8 {[%clk 0:00:04.8]} 37. Bf6+ {[%clk
0:00:42.3]} 37... Kc8 {[%clk 0:00:05.3]} 38. Qg8+ {[%clk 0:00:36.2]} 38... Kd7
{[%clk 0:00:05.5]} 39. Qf7+ {[%clk 0:00:33.7]} 39... Kc6 {[%clk 0:00:05.4]} 40.
Qc4+ {[%clk 0:00:32.5]} 40... Kd7 {[%clk 0:00:05.5]} 41. Qxc7+ {[%clk
0:00:31.4]} 41... Kxc7 {[%clk 0:00:05.8]} 42. Bd4 {[%clk 0:00:31.9]} 42... Kc6
{[%clk 0:00:06]} 43. g3 {[%clk 0:00:30.7]} 43... Kd5 {[%clk 0:00:05.3]} 44. Be3
{[%clk 0:00:29.8]} 44... Ke5 {[%clk 0:00:04.2]} 45. h4 {[%clk 0:00:30.2]} 45...
Kd5 {[%clk 0:00:04.3]} 46. Kf1 {[%clk 0:00:30.3]} 46... Kc4 {[%clk 0:00:04.5]}
47. Ke2 {[%clk 0:00:30.8]} 47... Kc3 {[%clk 0:00:04.9]} 48. Bb6 {[%clk
0:00:30.4]} 48... Kc4 {[%clk 0:00:05.1]} 49. Ke3 {[%clk 0:00:31]} 49... Kd5
{[%clk 0:00:05.9]} 50. Kf4 {[%clk 0:00:31.7]} 50... Ke6 {[%clk 0:00:06.6]} 51.
Kg5 {[%clk 0:00:32.4]} 51... Kf7 {[%clk 0:00:07.2]} 52. Bd4 {[%clk 0:00:32.4]}
1-0

[Event "Late-Titled-Tuesday-Blitz-September-19-2023"]
[Site "Chess.com"]
[Date "2023.09.19"]
[Round "4"]
[White "tarno17"]
[Black "davigator"]
[Result "0-1"]
[WhiteElo "2158"]
[BlackElo "2332"]
[TimeControl "180+1"]
[EndTime "14:37:34 PDT"]
[Termination "davigator won on time"]

1. e4 {[%clk 0:03:00.9]} 1... c5 {[%clk 0:02:37.5]} 2. Nf3 {[%clk 0:03:00.2]}
2... Nc6 {[%clk 0:02:36.5]} 3. Bb5 {[%clk 0:02:59.1]} 3... g6 {[%clk 0:02:32.6]}
4. O-O {[%clk 0:02:58.8]} 4... Bg7 {[%clk 0:02:30.3]} 5. c3 {[%clk 0:02:58.8]}
5... Nf6 {[%clk 0:02:29.8]} 6. e5 {[%clk 0:02:53.8]} 6... Nd5 {[%clk 0:02:29.3]}
7. d4 {[%clk 0:02:54.3]} 7... cxd4 {[%clk 0:02:29.5]} 8. cxd4 {[%clk 0:02:52.5]}
8... O-O {[%clk 0:02:29.7]} 9. Nc3 {[%clk 0:02:50.8]} 9... Nc7 {[%clk
0:02:29.6]} 10. Ba4 {[%clk 0:02:46.4]} 10... d5 {[%clk 0:02:27.7]} 11. h3 {[%clk
0:02:41]} 11... Rb8 {[%clk 0:02:19.5]} 12. Bc2 {[%clk 0:02:33.4]} 12... Nb4
{[%clk 0:02:17.5]} 13. Bb1 {[%clk 0:02:31.6]} 13... Ne6 {[%clk 0:02:06.7]} 14.
a3 {[%clk 0:02:21.3]} 14... Nc6 {[%clk 0:02:06.4]} 15. Be3 {[%clk 0:02:16.4]}
15... Qd7 {[%clk 0:02:03.7]} 16. Nh2 {[%clk 0:02:04.7]} 16... f6 {[%clk
0:01:59.9]} 17. f4 {[%clk 0:01:56.5]} 17... fxe5 {[%clk 0:01:55.7]} 18. fxe5
{[%clk 0:01:51.4]} 18... b5 {[%clk 0:01:48.6]} 19. Rxf8+ {[%clk 0:01:47.8]}
19... Bxf8 {[%clk 0:01:47.3]} 20. Ng4 {[%clk 0:01:44.2]} 20... a5 {[%clk
0:01:33.5]} 21. Ne2 {[%clk 0:00:58.8]} 21... Bg7 {[%clk 0:01:20.5]} 22. Bd3
{[%clk 0:00:36.3]} 22... b4 {[%clk 0:01:18.8]} 23. axb4 {[%clk 0:00:30.4]} 23...
Rxb4 {[%clk 0:01:18.1]} 24. Rc1 {[%clk 0:00:18]} 24... Rxb2 {[%clk 0:01:08.2]}
25. Qf1 {[%clk 0:00:18.3]} 25... Ncd8 {[%clk 0:00:55.6]} 26. Bh6 {[%clk
0:00:16.1]} 26... Bb7 {[%clk 0:00:51.4]} 27. Bxg7 {[%clk 0:00:14.9]} 27... Kxg7
{[%clk 0:00:47]} 28. Ng3 {[%clk 0:00:14.1]} 28... Nxd4 {[%clk 0:00:37.5]} 29.
Qf4 {[%clk 0:00:13]} 29... N8e6 {[%clk 0:00:35.1]} 30. Qh6+ {[%clk 0:00:13]}
30... Kg8 {[%clk 0:00:35.2]} 31. Nh5 {[%clk 0:00:08.1]} 31... Qd8 {[%clk
0:00:15.1]} 32. Nhf6+ {[%clk 0:00:05.3]} 32... exf6 {[%clk 0:00:15.2]} 33. Nxf6+
{[%clk 0:00:05]} 33... Kf7 {[%clk 0:00:15.7]} 34. Rf1 {[%clk 0:00:02.1]} 34...
Nf5 {[%clk 0:00:01.3]} 0-1

[Event "Late-Titled-Tuesday-Blitz-September-19-2023"]
[Site "Chess.com"]
[Date "2023.09.19"]
[Round "4"]
[White "angryspacevoid"]
[Black "farzadbfd"]
[Result "0-1"]
[WhiteElo "2499"]
[BlackElo "2689"]
[TimeControl "180+1"]
[EndTime "14:37:35 PDT"]
[Termination "farzadbfd won by checkmate"]

1. e4 {[%clk 0:03:00.9]} 1... e5 {[%clk 0:03:00.1]} 2. d4 {[%clk 0:02:59.2]}
2... exd4 {[%clk 0:03:00.3]} 3. Qxd4 {[%clk 0:03:00.1]} 3... Nc6 {[%clk
0:03:00.3]} 4. Qe3 {[%clk 0:03:00.6]} 4... Bb4+ {[%clk 0:02:59]} 5. Bd2 {[%clk
0:02:57.7]} 5... Bxd2+ {[%clk 0:02:55]} 6. Nxd2 {[%clk 0:02:58.6]} 6... d6
{[%clk 0:02:55.3]} 7. Bc4 {[%clk 0:02:55.3]} 7... Be6 {[%clk 0:02:54]} 8. O-O-O
{[%clk 0:02:53.3]} 8... Qe7 {[%clk 0:02:48.9]} 9. f4 {[%clk 0:02:26.9]} 9... Nf6
{[%clk 0:02:46.4]} 10. Bb3 {[%clk 0:02:16.9]} 10... Bxb3 {[%clk 0:02:45.2]} 11.
cxb3 {[%clk 0:02:09.2]} 11... a5 {[%clk 0:02:31.6]} 12. Ngf3 {[%clk 0:02:00.6]}
12... O-O {[%clk 0:02:24.3]} 13. h3 {[%clk 0:01:55.6]} 13... a4 {[%clk
0:02:13.6]} 14. Rhe1 {[%clk 0:01:49.4]} 14... axb3 {[%clk 0:02:12.2]} 15. Qxb3
{[%clk 0:01:50.3]} 15... Nd7 {[%clk 0:02:06.5]} 16. Kb1 {[%clk 0:01:44.8]} 16...
Nc5 {[%clk 0:02:06.2]} 17. Qc3 {[%clk 0:01:43.6]} 17... Qe6 {[%clk 0:01:28.8]}
18. Qc4 {[%clk 0:01:28.4]} 18... Qg6 {[%clk 0:01:28.4]} 19. f5 {[%clk 0:01:19]}
19... Qf6 {[%clk 0:01:13.9]} 20. g4 {[%clk 0:01:16.1]} 20... Ra4 {[%clk
0:01:12.5]} 21. Qc2 {[%clk 0:01:13.4]} 21... Rxa2 {[%clk 0:01:03.9]} 22. e5
{[%clk 0:01:02.7]} 22... Rfa8 {[%clk 0:00:53.9]} 23. Qxc5 {[%clk 0:00:56.4]}
23... Nxe5 {[%clk 0:00:32.9]} 24. Qb5 {[%clk 0:00:42.3]} 24... c6 {[%clk
0:00:21]} 25. Qxb7 {[%clk 0:00:40.9]} 25... Nd3 {[%clk 0:00:17.8]} 26. Nc4
{[%clk 0:00:26.7]} 26... Nxe1 {[%clk 0:00:11.9]} 27. Rxe1 {[%clk 0:00:27.6]}
27... h6 {[%clk 0:00:10.5]} 28. Re7 {[%clk 0:00:16.5]} 28... d5 {[%clk
0:00:10.3]} 29. Nce5 {[%clk 0:00:15.7]} 29... Ra1+ {[%clk 0:00:10]} 30. Kc2
{[%clk 0:00:15.7]} 30... Rf8 {[%clk 0:00:10.4]} 31. Rc7 {[%clk 0:00:06.5]} 31...
Rf1 {[%clk 0:00:10.6]} 32. Nd7 {[%clk 0:00:05.9]} 32... Qd6 {[%clk 0:00:08.5]}
33. Nxf8 {[%clk 0:00:06.1]} 33... Qc5+ {[%clk 0:00:05.2]} 34. Kd2 {[%clk
0:00:05.2]} 34... Rf2+ {[%clk 0:00:05]} 35. Ke1 {[%clk 0:00:04.5]} 35... Qe3+
{[%clk 0:00:04.7]} 36. Kd1 {[%clk 0:00:05]} 36... Qe2+ {[%clk 0:00:05.1]} 37.
Kc1 {[%clk 0:00:04.9]} 37... Qc2# {[%clk 0:00:05.8]} 0-1

[Event "Late-Titled-Tuesday-Blitz-September-19-2023"]
[Site "Chess.com"]
[Date "2023.09.19"]
[Round "4"]
[White "MajorCoast"]
[Black "whiteglovethief"]
[Result "0-1"]
[WhiteElo "2288"]
[BlackElo "2517"]
[TimeControl "180+1"]
[EndTime "14:37:36 PDT"]
[Termination "whiteglovethief won on time"]

1. d4 {[%clk 0:03:00.9]} 1... Nf6 {[%clk 0:02:56.5]} 2. Nf3 {[%clk 0:03:01.3]}
2... e6 {[%clk 0:02:55.4]} 3. Bf4 {[%clk 0:03:00.9]} 3... d5 {[%clk 0:02:54.7]}
4. e3 {[%clk 0:03:00.8]} 4... h6 {[%clk 0:02:54.1]} 5. Bd3 {[%clk 0:03:00]} 5...
Bd6 {[%clk 0:02:54.5]} 6. Bg3 {[%clk 0:02:59.6]} 6... O-O {[%clk 0:02:54.5]} 7.
c3 {[%clk 0:02:59.3]} 7... c5 {[%clk 0:02:54.8]} 8. Nbd2 {[%clk 0:02:59.4]} 8...
Nc6 {[%clk 0:02:54.4]} 9. O-O {[%clk 0:02:58]} 9... b6 {[%clk 0:02:50.1]} 10. e4
{[%clk 0:02:49.7]} 10... Bxg3 {[%clk 0:02:43.4]} 11. hxg3 {[%clk 0:02:48]} 11...
cxd4 {[%clk 0:02:43.7]} 12. e5 {[%clk 0:02:30.6]} 12... Nd7 {[%clk 0:02:31.8]}
13. cxd4 {[%clk 0:02:30.2]} 13... f5 {[%clk 0:02:28.1]} 14. exf6 {[%clk
0:02:24.9]} 14... Qxf6 {[%clk 0:02:26.9]} 15. Rc1 {[%clk 0:02:20.1]} 15... Bb7
{[%clk 0:02:27.1]} 16. Bb5 {[%clk 0:02:07.6]} 16... Rac8 {[%clk 0:02:24.5]} 17.
Qa4 {[%clk 0:02:05.5]} 17... Ndb8 {[%clk 0:02:20.5]} 18. Rfe1 {[%clk 0:01:31.9]}
18... a6 {[%clk 0:02:13.7]} 19. Bd3 {[%clk 0:01:19.5]} 19... b5 {[%clk
0:02:08.3]} 20. Qd1 {[%clk 0:01:15.8]} 20... Nxd4 {[%clk 0:02:05.5]} 21. Rxc8
{[%clk 0:01:12.3]} 21... Nxf3+ {[%clk 0:02:02.3]} 22. Nxf3 {[%clk 0:01:09.7]}
22... Bxc8 {[%clk 0:01:59.8]} 23. Bb1 {[%clk 0:01:02.4]} 23... Qxb2 {[%clk
0:01:43]} 24. Qd3 {[%clk 0:00:56.3]} 24... Rf6 {[%clk 0:01:42.9]} 25. Qh7+
{[%clk 0:00:51.2]} 25... Kf7 {[%clk 0:01:29.7]} 26. Ne5+ {[%clk 0:00:48.9]}
26... Ke8 {[%clk 0:01:28.8]} 27. Qg8+ {[%clk 0:00:38.2]} 27... Rf8 {[%clk
0:01:27.5]} 28. Bg6+ {[%clk 0:00:38.3]} 28... Ke7 {[%clk 0:01:23.6]} 29. Qxg7+
{[%clk 0:00:38.4]} 29... Kd8 {[%clk 0:01:16.8]} 30. Nf7+ {[%clk 0:00:20.9]}
30... Kc7 {[%clk 0:01:17.7]} 31. Qxb2 {[%clk 0:00:20.6]} 31... Nc6 {[%clk
0:01:16.8]} 32. Rc1 {[%clk 0:00:18.4]} 32... Bd7 {[%clk 0:01:16.2]} 33. Ne5
{[%clk 0:00:18.1]} 33... Kd6 {[%clk 0:01:16.3]} 34. Nxd7 {[%clk 0:00:17.6]}
34... Kxd7 {[%clk 0:01:16]} 35. Qc2 {[%clk 0:00:17.9]} 35... Rc8 {[%clk
0:01:14.6]} 36. Qe2 {[%clk 0:00:17.9]} 36... Nd4 {[%clk 0:01:13.7]} 37. Rxc8
{[%clk 0:00:14.4]} 37... Nxe2+ {[%clk 0:01:13.1]} 38. Kf1 {[%clk 0:00:14.9]}
38... Nxg3+ {[%clk 0:01:04.4]} 39. fxg3 {[%clk 0:00:15.8]} 39... Kxc8 {[%clk
0:01:04.2]} 40. Ke2 {[%clk 0:00:14.7]} 40... Kd7 {[%clk 0:01:04.6]} 41. Kd3
{[%clk 0:00:14.2]} 41... Kd6 {[%clk 0:00:57.8]} 42. a3 {[%clk 0:00:09.1]} 42...
e5 {[%clk 0:00:57.5]} 43. Be8 {[%clk 0:00:07.1]} 43... Kc5 {[%clk 0:00:57.6]}
44. Kc3 {[%clk 0:00:06.2]} 44... a5 {[%clk 0:00:57.3]} 45. Bf7 {[%clk
0:00:05.7]} 45... e4 {[%clk 0:00:54.5]} 46. g4 {[%clk 0:00:04.9]} 46... d4+
{[%clk 0:00:53.3]} 47. Kd2 {[%clk 0:00:05.5]} 47... a4 {[%clk 0:00:49.9]} 48.
Be6 {[%clk 0:00:05.2]} 48... b4 {[%clk 0:00:48.5]} 49. axb4+ {[%clk 0:00:05.1]}
49... Kxb4 {[%clk 0:00:49.4]} 50. Bd5 {[%clk 0:00:05]} 50... a3 {[%clk
0:00:48.8]} 51. Ba2 {[%clk 0:00:03.1]} 51... Kc5 {[%clk 0:00:44.3]} 52. Bb3
{[%clk 0:00:02.8]} 52... d3 {[%clk 0:00:42]} 53. Ke3 {[%clk 0:00:01]} 53... Kb4
{[%clk 0:00:42]} 0-1

[Event "Late-Titled-Tuesday-Blitz-September-19-2023"]
[Site "Chess.com"]
[Date "2023.09.19"]
[Round "4"]
[White "RCone"]
[Black "K_alena13"]
[Result "1-0"]
[WhiteElo "2451"]
[BlackElo "2163"]
[TimeControl "180+1"]
[EndTime "14:37:38 PDT"]
[Termination "RCone won by resignation"]

1. e4 {[%clk 0:03:00.9]} 1... e5 {[%clk 0:02:52.2]} 2. Bc4 {[%clk 0:03:00]} 2...
Nf6 {[%clk 0:02:47]} 3. Nc3 {[%clk 0:02:58.4]} 3... Bb4 {[%clk 0:02:27.6]} 4.
Nge2 {[%clk 0:02:53.3]} 4... d6 {[%clk 0:02:22.9]} 5. O-O {[%clk 0:02:52.4]}
5... O-O {[%clk 0:02:22.2]} 6. d3 {[%clk 0:02:52.1]} 6... Nc6 {[%clk 0:02:15.9]}
7. Bg5 {[%clk 0:02:51.4]} 7... Bxc3 {[%clk 0:02:00.6]} 8. Nxc3 {[%clk
0:02:46.5]} 8... h6 {[%clk 0:02:00.7]} 9. Bd2 {[%clk 0:02:38.3]} 9... Na5 {[%clk
0:01:54.2]} 10. Qf3 {[%clk 0:02:10.6]} 10... Nxc4 {[%clk 0:01:51.1]} 11. dxc4
{[%clk 0:02:11.5]} 11... Be6 {[%clk 0:01:33.1]} 12. b3 {[%clk 0:02:11.1]} 12...
c6 {[%clk 0:01:32.2]} 13. Qg3 {[%clk 0:02:09]} 13... Nh5 {[%clk 0:01:27]} 14.
Qf3 {[%clk 0:02:03.6]} 14... Qh4 {[%clk 0:01:15.2]} 15. h3 {[%clk 0:01:50.6]}
15... f5 {[%clk 0:01:03.6]} 16. Qd3 {[%clk 0:01:29.2]} 16... Rad8 {[%clk
0:00:59.3]} 17. f3 {[%clk 0:01:07.9]} 17... f4 {[%clk 0:00:53]} 18. Be1 {[%clk
0:01:05.3]} 18... Qg5 {[%clk 0:00:52.5]} 19. Kh1 {[%clk 0:00:56.2]} 19... Ng3+
{[%clk 0:00:35.9]} 20. Bxg3 {[%clk 0:00:55.6]} 20... fxg3 {[%clk 0:00:30.8]} 21.
Kg1 {[%clk 0:00:48.6]} 21... Qh4 {[%clk 0:00:28.8]} 22. Qe2 {[%clk 0:00:39.6]}
22... g5 {[%clk 0:00:23.8]} 23. Rad1 {[%clk 0:00:38.9]} 23... h5 {[%clk
0:00:22.2]} 24. Qe3 {[%clk 0:00:36.6]} 24... a6 {[%clk 0:00:20.2]} 25. a4 {[%clk
0:00:35]} 25... g4 {[%clk 0:00:19.3]} 26. fxg4 {[%clk 0:00:34.3]} 26... Rxf1+
{[%clk 0:00:18.8]} 27. Rxf1 {[%clk 0:00:33.4]} 27... hxg4 {[%clk 0:00:18.9]} 28.
Ne2 {[%clk 0:00:29.4]} 28... gxh3 {[%clk 0:00:17.2]} 29. Qxg3+ {[%clk 0:00:30]}
29... Qxg3 {[%clk 0:00:17.3]} 30. Nxg3 {[%clk 0:00:30.8]} 30... hxg2 {[%clk
0:00:17.9]} 31. Kxg2 {[%clk 0:00:31.6]} 31... Kg7 {[%clk 0:00:16.6]} 32. Nf5+
{[%clk 0:00:31.3]} 32... Bxf5 {[%clk 0:00:16.8]} 33. Rxf5 {[%clk 0:00:32.1]}
33... Rg8 {[%clk 0:00:15.5]} 34. Kf3 {[%clk 0:00:31.1]} 34... Kg6 {[%clk
0:00:15.1]} 35. Ke2 {[%clk 0:00:29]} 35... Rh8 {[%clk 0:00:14.8]} 36. Rf2 {[%clk
0:00:28.7]} 36... Rh1 {[%clk 0:00:14.8]} 37. Rg2+ {[%clk 0:00:25.7]} 37... Kf6
{[%clk 0:00:14.3]} 38. Rg8 {[%clk 0:00:25.7]} 38... Rh2+ {[%clk 0:00:13.7]} 39.
Kd3 {[%clk 0:00:25.9]} 39... Rh3+ {[%clk 0:00:13.6]} 40. Kd2 {[%clk 0:00:26.1]}
40... Rh2+ {[%clk 0:00:13.9]} 41. Kc3 {[%clk 0:00:25.8]} 41... Rh7 {[%clk
0:00:07.2]} 42. Rd8 {[%clk 0:00:24.8]} 42... Ke7 {[%clk 0:00:06.5]} 43. Rb8
{[%clk 0:00:24.5]} 43... Ke6 {[%clk 0:00:06.9]} 44. a5 {[%clk 0:00:24.1]} 44...
Kd7 {[%clk 0:00:06.1]} 45. Rxb7+ {[%clk 0:00:23.8]} 1-0